Workbook

Sheet 1нед
B1: Наименование блюд | G1: Выход | H1: Белки, г | I1: Жиры, г | J1: Углеводы, г | K1: Калорийность, ккал | L1: Витамин B1, мг | M1: Витамин С, мг | N1: Витамин А, мг | Q1: Витамин Е, мг | R1: Ca, мг | S1: P, мг | T1: Mg, мг | U1: Fe, мг
B2: 1-ая неделя
B3: 1 день (ПОНЕДЕЛЬНИК) 1 питание
A4: 182/2015 Дели | B4: КАША МОЛОЧНАЯ (ПШЕННАЯ) | G4: 200 | H4: 8.4 | I4: 9.2 | J4: 46.6 | K4: 304 | L4: 0.2 | M4: 0.5 | O4: 0.1 | Q4: 1.6 | R4: 109.9 | S4: 178.8 | T4: 50.4 | U4: 1.5
A5: 349/2015, Дели | B5: КОМПОТ ИЗ СМЕСИ СУХОФРУКТОВ | G5: 200 | H5: 0.0 | I5: 0.0 | J5: 14.6 | K5: 58.1 | L5: 0.0 | M5: 0.0 | N5: 0.0 | Q5: 0.0 | R5: 8.4 | S5: 0.0 | T5: 1.8 | U5: 0.0
B6: ХЛЕБ ПШЕНИЧНЫЙ | G6: 50 | H6: 3.800 | I6: 0.400 | J6: 24.500 | K6: 118.3 | L6: 0.055 | M6: 0 | N6: 0 | Q6: 0.550 | R6: 10.000 | S6: 32.500 | T6: 7.000 | U6: 0.550
A7: 2 питание
A8: № 52 Сбор.рец. На прод-ию для обуч. Во всех образ.учреж-Дели 2015 | B8: САЛАТ ИЗ СВЕКЛЫ ОТВАРНОЙ | G8: 100 | H8: 1.425 | I8: 6.088 | J8: 19.3 | K8: 93.3 | L8: 0.018 | M8: 0.0 | O8: 0 | Q8: 1.068 | R8: 201.81 | S8: 141.0 | T8: 20.9 | U8: 0.3
A9: № 280 Сбор.рец. На прод-ию для обуч. Во всех образ.учреж-Дели -2015 | B9: ФРИКАДЕЛЬКИ В СОУСЕ | G9: 55/50 | H9: 8.33 | I9: 7.74 | J9: 3.19 | K9: 175.00 | L9: 0.03 | M9: 0.65 | N9: 0.10 | Q9: 1.26 | R9: 100.53 | S9: 110.07 | T9: 0.08 | U9: 1.00
A10: № 303 Сбор.рец. На прод-ию для обуч. Во всех образ.учреж-Дели 2015 | B10: КАША ВЯЗКАЯ (ГРЕЧНЕВАЯ) | G10: 200 | H10: 8.882 | I10: 12.032 | J10: 45.333 | K10: 227 | L10: 0.389 | M10: - | P10: 0.690 | R10: 49.802 | S10: 227.404 | T10: 59.400 | U10: 1.468
A11: № 376 Сбор.рец. На прод-ию для обуч. Во всех образ.учреж-Дели 2015 | B11: ЧАЙ С САХАРОМ | G11: 200/15 | H11: 0.530 | J11: 9.47 | K11: 40 | M11: 0.270 | N11: - | R11: 13.600 | S11: 22.130 | T11: 11.730 | U11: 0.100
B12: ХЛЕБ РЖАНОЙ (РЖАНО-ПШЕНИЧНЫЙ) | G12: 20 | H12: 1.00 | I12: 0.2 | J12: 9 | K12: 44 | L12: 0.014 | M12: 0 | N12: 0 | Q12: 0.108 | R12: 2.76 | S12: 12.72 | T12: 3 | U12: 0.372
B13: ХЛЕБ ПШЕНИЧНЫЙ | G13: 30 | H13: 2.280 | I13: 0.240 | J13: 14.760 | K13: 71 | L13: 0.033 | M13: - | N13: - | Q13: 0.330 | R13: 6.000 | S13: 19.500 | T13: 4.200 | U13: 0.330
B14: Итого: | H14: =SUM(H4:H13) -> 34.647 | I14: =SUM(I4:I13) -> 35.903 | J14: 186.760 | K14: 1130.4 | L14: 0.749 | M14: 1.42 | N14: =SUM(O4:O13) -> 0.10 | Q14: =SUM(Q4:Q13) -> 4.912 | R14: =SUM(R4:R13) -> 502.802 | S14: =SUM(S4:S13) -> 744.095 | T14: =SUM(T4:T13) -> 158.5 | U14: =SUM(U4:U13) -> 5.650
B15: 2 день (ВТОРНИК) 1 питание
A16: № 132 Сбор.рец. На прод-ию для обуч. Во всех образ.учреж-Дели 2012 | B16: КАПУСТА ТУШЕНАЯ | G16: 100 | H16: 2.4 | I16: 4.000 | J16: 9.800 | K16: 86.1 | L16: 0.00 | M16: 20.5 | N16: 0.3 | P16: 1.9 | R16: 63.1 | S16: 45.6 | T16: 23.3 | U16: 1.3
A17: № 289 Сбор.рец. На прод-ию для обуч. Во всех образ.учреж-Дели 2015 | B17: РАГУ ИЗ ПТИЦЫ | G17: 50/200 | H17: 16.400 | I17: 23.540 | J17: 39.800 | K17: 417 | L17: 0.268 | M17: 10.768 | N17: 0.240 | P17: 2.800 | R17: 76.880 | S17: 269.214 | T17: 35.192 | U17: 0.148
A18: № 376 Сбор.рец. На прод-ию для обуч. Во всех образ.учреж-Дели 2015 | B18: ЧАЙ С САХАРОМ | G18: 200/15 | H18: 0.530 | J18: 9.47 | K18: 40 | M18: 0.270 | N18: - | R18: 13.600 | S18: 22.130 | T18: 11.730 | U18: 0.100
B19: ХЛЕБ РЖАНОЙ (РЖАНО-ПШЕНИЧНЫЙ) | G19: 20 | H19: 1.00 | I19: 0.2 | J19: 9 | K19: 44 | L19: 0.014 | M19: 0 | N19: 0 | Q19: 0.108 | R19: 2.76 | S19: 12.72 | T19: 3 | U19: 0.372
B20: ХЛЕБ ПШЕНИЧНЫЙ | G20: 30 | H20: 2.280 | I20: 0.240 | J20: 14.760 | K20: 71 | L20: 0.033 | M20: - | N20: - | Q20: 0.330 | R20: 6.000 | S20: 19.500 | T20: 4.200 | U20: 0.330
A21: 2 питание
A22: 98/2008Речь | B22: СУП КАРТОФЕЛЬНЫЙ С ГЕРКУЛЕСОМ НА МЯСО-КОСТНОМ БУЛЬОНЕ | G22: 250 | H22: 4.5 | I22: 2.6 | J22: 15.2 | K22: 103.3 | L22: 0.1 | M22: 4.5 | O22: 0.2 | Q22: 0.5 | R22: 27.6 | S22: 30.2 | T22: 83.7 | U22: 1.3
A23: № 376 Сбор.рец. На прод-ию для обуч. Во всех образ.учреж-Дели 2015 | B23: ЧАЙ С САХАРОМ | G23: 200/15 | H23: 0.530 | J23: 9.47 | K23: 40 | M23: 0.270 | N23: - | R23: 13.600 | S23: 22.130 | T23: 11.730 | U23: 0.100
B24: ХЛЕБ РЖАНОЙ (РЖАНО-ПШЕНИЧНЫЙ) | G24: 50 | H24: 2.5 | I24: 0.5 | J24: 22.5 | K24: 110 | L24: 0.035 | M24: 0 | N24: 0 | Q24: 0.27 | R24: 6.9 | S24: 7.5 | T24: 31.8 | U24: 0.93
B25: Итого: | H25: =SUM(H16:H24) -> 30.14 | I25: =SUM(I16:I24) -> 31.08 | J25: =SUM(J16:J24) -> 130.00 | K25: =SUM(K16:K24) -> 912 | L25: =SUM(L16:L24) -> 0.450 | M25: =SUM(M16:N24) -> 36.848 | N25: =SUM(N16:P24) -> 5.4 | Q25: =SUM(P16:Q18,Q19,Q20,Q22,Q23,Q24) -> 5.908 | R25: =SUM(R16:R24) -> 210.440 | S25: =SUM(S16:S24) -> 428.99 | T25: =SUM(T16:T24) -> 204.652 | U25: =SUM(U16:U24) -> 4.580
B26: 3 день (СРЕДА) 1 питание
A27: 182/2015,Дели | B27: КАША РИСОВАЯ МОЛОЧНАЯ | G27: 200 | H27: 5.2 | I27: 7.9 | J27: 41.6 | K27: 259.8 | L27: 0 | M27: 0.4 | O27: 0.1 | Q27: 0.4 | R27: 93 | S27: 119.6 | T27: 30.1 | U27: 0.5
A28: № 376 Сбор.рец. На прод-ию для обуч. Во всех образ.учреж-Дели 2015 | B28: ЧАЙ С САХАРОМ | G28: 200/15 | H28: 0.530 | J28: 9.47 | K28: 40 | M28: 0.270 | N28: - | R28: 13.600 | S28: 22.130 | T28: 11.730 | U28: 0.100
B29: ХЛЕБ ПШЕНИЧНЫЙ | G29: 50 | H29: 3.800 | I29: 0.400 | J29: 24.500 | K29: 118.3 | L29: 0.055 | M29: 0 | N29: 0 | Q29: 0.550 | R29: 10.000 | S29: 32.500 | T29: 7.000 | U29: 0.550
A30: 2 питание
A31: № 52 Сбор.рец. На прод-ию для обуч. Во всех образ.учреж-Дели 2015 | B31: САЛАТ ИЗ СВЕКЛЫ ОТВАРНОЙ | G31: 100 | H31: 1.425 | I31: 6.088 | J31: 19.3 | K31: 93.3 | L31: 0.018 | M31: 0.0 | O31: 0 | Q31: 1.068 | R31: 201.81 | S31: 141.0 | T31: 20.9 | U31: 0.3
A32: № 203 Сбор.рец. На прод-ию для обуч. Во всех образ.учреж-Дели 2015 | B32: МАКАРОННЫЕ ИЗДЕЛИЯ ОТВАРНЫЕ С МАСЛОМ | G32: 200 | H32: 6.800 | I32: 5.957 | J32: 38.000 | K32: 249.33 | L32: 0.116 | M32: - | N32: 0.133 | Q32: 1.453 | R32: 21.942 | S32: 76.012 | T32: 11.305 | U32: 1.540
A33: № 268 Сбор.рец. На прод-ию для обуч. Во всех образ.учреж-Дели 2015 | B33: КОТЛЕТЫ | G33: 60 | H33: 9.137 | I33: 9.110 | J33: 5.805 | K33: 139.7 | L33: 0.041 | M33: 0.525 | O33: - | P33: - | Q33: 0.984 | R33: 9.579 | S33: 92.37 | T33: 11.707 | U33: 1.363
A34: № 376 Сбор.рец. На прод-ию для обуч. Во всех образ.учреж-Дели 2015 | B34: ЧАЙ С САХАРОМ | G34: 200/15 | H34: 0.530 | J34: 9.47 | K34: 40 | M34: 0.270 | N34: - | R34: 13.600 | S34: 22.130 | T34: 11.730 | U34: 0.100
B35: ХЛЕБ РЖАНОЙ (РЖАНО-ПШЕНИЧНЫЙ) | G35: 20 | H35: 1.00 | I35: 0.2 | J35: 9 | K35: 44 | L35: 0.014 | M35: 0 | N35: 0 | Q35: 0.108 | R35: 2.76 | S35: 12.72 | T35: 3 | U35: 0.372
B36: ХЛЕБ ПШЕНИЧНЫЙ | G36: 30 | H36: 2.280 | I36: 0.240 | J36: 14.760 | K36: 71 | L36: 0.033 | M36: - | N36: - | Q36: 0.330 | R36: 6.000 | S36: 19.500 | T36: 4.200 | U36: 0.330
B37: Итого: | H37: =SUM(H27:H36) -> 30.702 | I37: =SUM(I27:I36) -> 29.90 | J37: =SUM(J27:J36) -> 171.9 | K37: =SUM(K27:K36) -> 1055 | L37: =SUM(L27:L36) -> 0.277 | M37: =SUM(M27:N36) -> 1.598 | N37: =SUM(N62,N28,N29,N36,O31) -> 0 | Q37: =SUM(Q27:Q36) -> 4.893 | R37: =SUM(R27:R36) -> 372.291 | S37: =SUM(S27:S36) -> 537.932 | T37: =SUM(T27:T36) -> 111.672 | U37: =SUM(U27:U36) -> 5.185
B38: 4 день (ЧЕТВЕРГ) 1 питание
A39: 181/2015,Дели | B39: КАША МАННАЯ МОЛОЧНАЯ | G39: 200 | H39: 6.8 | I39: 8.1 | J39: 41.10 | K39: 263.40 | L39: 0.1 | M39: 0.40 | N39: 0.1 | P39: 1.3 | R39: 104.8 | S39: 97.5 | T39: 17.9 | U39: 0.5
A40: № 376 Сбор.рец. На прод-ию для обуч. Во всех образ.учреж-Дели 2015 | B40: ЧАЙ С САХАРОМ | G40: 200/15 | H40: 0.530 | J40: 9.47 | K40: 40 | M40: 0.270 | N40: - | R40: 13.600 | S40: 22.130 | T40: 11.730 | U40: 0.100
B41: ХЛЕБ ПШЕНИЧНЫЙ | G41: 50 | H41: 3.800 | I41: 0.400 | J41: 24.500 | K41: 118.3 | L41: 0.055 | M41: 0 | N41: 0 | Q41: 0.550 | R41: 10.000 | S41: 32.500 | T41: 7.000 | U41: 0.550
A42: 2 питание
A43: № 132 Сбор.рец. На прод-ию для обуч. Во всех образ.учреж-Дели 2012 | B43: КАПУСТА ТУШЕНАЯ | G43: 100 | H43: 2.4 | I43: 4.000 | J43: 9.800 | K43: 86.1 | L43: 0.00 | M43: 20.5 | N43: 0.3 | P43: 1.9 | R43: 63.1 | S43: 45.6 | T43: 23.3 | U43: 1.3
A44: № 312 Сбор.рец. На прод-ию для обуч. Во всех образ.учреж-Дели -2015 | B44: ПЮРЕ КАРТОФЕЛЬНОЕ | G44: 200 | H44: 4.120 | I44: 11.042 | J44: 29.300 | K44: 229.33 | L44: 0.218 | M44: 10.590 | N44: 0.106 | P44: 4.000 | R44: 63.740 | S44: 131.780 | T44: 10.600 | U44: 0.000
A45: № 295 Сбор.рец. На прод-ию для обуч. Во всех образ.учреж-Дели 2015 | B45: КОТЛЕТЫ РУБЛЕННЫЕ ИЗ БРОЙЛЕР-ЦЫПЛЯТ | G45: 80 | H45: 10.240 | I45: 5.370 | J45: 19.360 | K45: 159 | L45: 0.080 | M45: 0.000 | R45: 89.430 | S45: 158.000 | T45: 0.640 | U45: 0.300
A46: 349/2015, Дели | B46: КОМПОТ ИЗ СМЕСИ СУХОФРУКТОВ | G46: 200 | H46: 0.0 | I46: 0.0 | J46: 14.6 | K46: 58.1 | L46: 0.0 | M46: 0.0 | N46: 0.0 | Q46: 0.0 | R46: 8.4 | S46: 0.0 | T46: 1.8 | U46: 0.0
B47: ХЛЕБ РЖАНОЙ (РЖАНО-ПШЕНИЧНЫЙ) | G47: 20 | H47: 1.00 | I47: 0.2 | J47: 9 | K47: 44 | L47: 0.014 | M47: 0 | N47: 0 | Q47: 0.108 | R47: 2.76 | S47: 12.72 | T47: 3 | U47: 0.372
B48: ХЛЕБ ПШЕНИЧНЫЙ | G48: 30 | H48: 2.280 | I48: 0.240 | J48: 14.760 | K48: 71 | L48: 0.033 | M48: - | N48: - | Q48: 0.330 | R48: 6.000 | S48: 19.500 | T48: 4.200 | U48: 0.330
B49: Итого: | H49: =SUM(H39:H48) -> 31.170 | I49: =SUM(I39:I48) -> 29.352 | J49: =SUM(J39:J48) -> 171.890 | K49: =SUM(K39:K48) -> 1069.2 | L49: =SUM(L39:L48) -> 0.510 | M49: =SUM(M39:M48) -> 31.760 | N49: =SUM(O39:O48) -> 0.0 | Q49: =SUM(Q39:Q48) -> 0.988 | R49: =SUM(R39:R48) -> 361.830 | S49: =SUM(S39:S48) -> 519.730 | T49: =SUM(T39:T48) -> 80.170 | U49: =SUM(U39:U48) -> 3.452
B50: 5 день (ПЯТНИЦА) 1 питание
A51: № 52 Сбор.рец. На прод-ию для обуч. Во всех образ.учреж-Дели 2015 | B51: САЛАТ ИЗ СВЕКЛЫ ОТВАРНОЙ | G51: 100 | H51: 1.425 | I51: 6.088 | J51: 19.3 | K51: 93.3 | L51: 0.018 | M51: 0.0 | O51: 0 | Q51: 1.068 | R51: 201.81 | S51: 141.0 | T51: 20.9 | U51: 0.3
A52: № 304 Сбор.рец. На прод-ию для обуч. Во всех образ.учреж-Дели 2015 | B52: РИС ОТВАРНОЙ | G52: 200 | H52: 5.112 | I52: 7.245 | J52: 39.466 | K52: 280 | L52: 0.058 | M52: 0 | O52: 0.24 | Q52: 0.378 | R52: 15.28 | S52: 112.2 | T52: 17.773 | U52: 0.013
A53: № 376 Сбор.рец. На прод-ию для обуч. Во всех образ.учреж-Дели 2015 | B53: ЧАЙ С САХАРОМ | G53: 200/15 | H53: 0.530 | J53: 9.47 | K53: 40 | M53: 0.270 | N53: - | R53: 13.600 | S53: 22.130 | T53: 11.730 | U53: 0.100
B54: ХЛЕБ РЖАНОЙ (РЖАНО-ПШЕНИЧНЫЙ) | G54: 20 | H54: 1.00 | I54: 0.2 | J54: 9 | K54: 44 | L54: 0.014 | M54: 0 | N54: 0 | Q54: 0.108 | R54: 2.76 | S54: 12.72 | T54: 3 | U54: 0.372
B55: ХЛЕБ ПШЕНИЧНЫЙ | G55: 30 | H55: 2.280 | I55: 0.240 | J55: 14.760 | K55: 71 | L55: 0.033 | M55: - | N55: - | Q55: 0.330 | R55: 6.000 | S55: 19.500 | T55: 4.200 | U55: 0.330
A56: 2 питание
A57: 67/2015,Дели | B57: ЩИ ИЗ СВЕЖЕЙ КАПУСТЫ С КАРТОФЕЛЕМ НА МЯСО-КОСТНОМ БУЛЬОНЕ | G57: 250 | H57: 4.3 | I57: 2.1 | J57: 11.8 | K57: 84.8 | L57: 0.1 | M57: 14.0 | O57: 0.2 | Q57: 0.2 | R57: 46.4 | S57: 70.2 | T57: 27.0 | U57: 1.4
A58: № 376 Сбор.рец. На прод-ию для обуч. Во всех образ.учреж-Дели 2015 | B58: ЧАЙ С САХАРОМ | G58: 200/15 | H58: 0.530 | J58: 9.47 | K58: 40 | M58: 0.270 | N58: - | R58: 13.600 | S58: 22.130 | T58: 11.730 | U58: 0.100
B59: ХЛЕБ РЖАНОЙ (РЖАНО-ПШЕНИЧНЫЙ) | G59: 50 | H59: 2.5 | I59: 0.5 | J59: 22.5 | K59: 110 | L59: 0.035 | M59: 0 | N59: 0 | Q59: 0.27 | R59: 6.9 | S59: 7.5 | T59: 31.8 | U59: 0.93
B60: Итого: | H60: =SUM(H51:H59) -> 17.677 | I60: =SUM(I51:I59) -> 16.373 | J60: =SUM(J51:J59) -> 135.769 | K60: =SUM(K51:K59) -> 763 | L60: =SUM(L51:L59) -> 0.258 | M60: 19.473 | N60: =SUM(O52,O57) -> 0.440 | Q60: =SUM(Q51:Q59) -> 2.354 | R60: =SUM(R51:R59) -> 306.350 | S60: =SUM(S51:S59) -> 407.350 | T60: =SUM(T51:T59) -> 128.133 | U60: =SUM(U51:U59) -> 3.575
B61: 6 день (СУББОТА) 1 питание
A62: 189/2008Речь | B62: КАША ПШЕНИЧНАЯ | G62: 200 | H62: 6.9 | I62: 7.5 | J62: 35.9 | K62: 238.2 | L62: 0.1 | M62: 0.4 | N62: 0.0 | P62: 0.1 | R62: 109.4 | S62: 31.8 | T62: 156.8 | U62: 1.6
A63: № 376 Сбор.рец. На прод-ию для обуч. Во всех образ.учреж-Дели 2015 | B63: ЧАЙ С САХАРОМ | G63: 200/15 | H63: 0.530 | J63: 9.47 | K63: 40 | M63: 0.270 | N63: - | R63: 13.600 | S63: 22.130 | T63: 11.730 | U63: 0.100
B64: ХЛЕБ ПШЕНИЧНЫЙ | G64: 50 | H64: 3.800 | I64: 0.400 | J64: 24.500 | K64: 118.3 | L64: 0.055 | M64: 0 | N64: 0 | Q64: 0.550 | R64: 10.000 | S64: 32.500 | T64: 7.000 | U64: 0.550
A65: 2 питание
A66: 141/2008 Речь | B66: РАГУ ИЗ ОВОЩЕЙ | G66: 200 | H66: 4.100 | I66: 5.200 | J66: 24.000 | K66: 160 | L66: 0.100 | M66: 22.100 | N66: 1.000 | Q66: 0.900 | R66: 71.600 | S66: 109.300 | T66: 49.900 | U66: 2.300
A67: № 376 Сбор.рец. На прод-ию для обуч. Во всех образ.учреж-Дели 2015 | B67: ЧАЙ С САХАРОМ | G67: 200/15 | H67: 0.530 | J67: 9.47 | K67: 40 | M67: 0.270 | N67: - | R67: 13.600 | S67: 22.130 | T67: 11.730 | U67: 0.100
B68: ХЛЕБ РЖАНОЙ (РЖАНО-ПШЕНИЧНЫЙ) | G68: 20 | H68: 1.00 | I68: 0.2 | J68: 9 | K68: 44 | L68: 0.014 | M68: 0 | N68: 0 | Q68: 0.108 | R68: 2.76 | S68: 12.72 | T68: 3 | U68: 0.372
B69: ХЛЕБ ПШЕНИЧНЫЙ | G69: 30 | H69: 2.280 | I69: 0.240 | J69: 14.760 | K69: 71 | L69: 0.033 | M69: - | N69: - | Q69: 0.330 | R69: 6.000 | S69: 19.500 | T69: 4.200 | U69: 0.330
B70: Итого: | H70: =SUM(H62,H63,H64,H66,H67,H68,H69) -> 19.1 | I70: =SUM(I62,I64,I63,I66,I67,I68,I69) -> 13.5 | J70: =SUM(J62,J63,J64,J66,J67,J68,J69) -> 127.1 | K70: =SUM(K62,K63,K64,K66,K67,K68,K69) -> 711.9 | L70: =SUM(L62,L63,L64,L66,L67,L68,L69) -> 0.3 | M70: =SUM(M62,M63,M64,M66,M67,M68) -> 23.0 | N70: =SUM(N62,N64,N66,N68) -> 1.0 | Q70: =SUM(P62,P63,Q64,Q66,P67,Q68,Q69) -> 2.0 | R70: =SUM(R62,R63,R64,R66,R67,R68,R69) -> 227.0 | S70: =SUM(S62,S63,S64,S66,S67,S68,S69) -> 250.1 | T70: =SUM(T62,T63,T64,T66,T67,T68,T69) -> 244.4 | U70: =SUM(U62,U63,U64,U66,U67,U68,U69) -> 5.4

Sheet 2нед
A1: № Сборника рецептур | B1: Наименование блюд | G1: Выход | H1: Белки, г | I1: Жиры, г | J1: Углеводы, г | K1: Калорийность, ккал | L1: Витамин B1, мг | M1: Витамин С, мг | O1: Витамин А, мг | P1: Витамин Е, мг | R1: Ca, мг | S1: P, мг | T1: Mg, мг | U1: Fe, мг
B2: 2-ая неделя
B3: 1 день (ПОНЕДЕЛЬНИК) 1 питание
A4: 181/2015,Дели | B4: КАША МАННАЯ МОЛОЧНАЯ | G4: 200 | H4: 6.8 | I4: 8.1 | J4: 41.10 | K4: 263.40 | L4: 0.1 | M4: 0.40 | N4: 0.1 | Q4: 1.3 | R4: 104.8 | S4: 97.5 | T4: 17.9 | U4: 0.5
A5: 349/2015, Дели | B5: КОМПОТ ИЗ СМЕСИ СУХОФРУКТОВ | G5: 200 | H5: 0.0 | I5: 0.0 | J5: 14.600 | K5: 58.1 | L5: 0.000 | M5: 0 | O5: 0 | Q5: 0.000 | R5: 8.4 | S5: 0.0 | T5: 1.8 | U5: 0.0
B6: ХЛЕБ ПШЕНИЧНЫЙ | G6: 50 | H6: 3.800 | I6: 0.400 | J6: 24.500 | K6: 118.3 | L6: 0.055 | M6: 0 | O6: 0 | Q6: 0.550 | R6: 10.000 | S6: 32.500 | T6: 7.000 | U6: 0.550
A7: 2 питание
A8: № 132 Сбор.рец. На прод-ию для обуч. Во всех образ.учреж-Дели 2012 | B8: КАПУСТА ТУШЕНАЯ | G8: 100 | H8: 2.4 | I8: 4.000 | J8: 9.800 | K8: 86.1 | L8: 0.00 | M8: 20.5 | N8: 0.3 | P8: 1.9 | R8: 63.1 | S8: 45.6 | T8: 23.3 | U8: 1.3
A9: № 280 Сбор.рец. На прод-ию для обуч. Во всех образ.учреж-Дели -2015 | B9: ФРИКАДЕЛЬКИ В СОУСЕ | G9: 55/50 | H9: 8.330 | I9: 7.743 | J9: 3.194 | K9: 175 | L9: 0.030 | M9: 0.65 | O9: 0.1 | Q9: 1.256 | R9: 100.530 | S9: 110.071 | T9: 0.077 | U9: 1.000
A10: № 302 Сбор.рец. На прод-ию для обуч. Во всех образ.учреж-Дели 2015 | B10: КАША ПОЛБЯНАЯ ВЯЗКАЯ | G10: 200 | H10: 4.600 | I10: 4.040 | J10: 34.900 | K10: 192 | L10: 0.173 | M10: 0 | O10: 28 | Q10: 0.414 | R10: 20.268 | S10: 176.290 | T10: 59.010 | U10: 1.960
A11: № 376 Сбор.рец. На прод-ию для обуч. Во всех образ.учреж-Дели 2015 | B11: ЧАЙ С САХАРОМ | G11: 200/15 | H11: 0.530 | J11: 9.47 | K11: 40 | M11: 0.270 | R11: 13.600 | S11: 22.130 | T11: 11.730 | U11: 0.100
B12: ХЛЕБ РЖАНОЙ (РЖАНО-ПШЕНИЧНЫЙ) | G12: 20 | H12: 1.00 | I12: 0.2 | J12: 9 | K12: 44 | L12: 0.014 | M12: 0 | O12: 0 | P12: 0.108 | R12: 2.760 | S12: 12.720 | T12: 3.000 | U12: 0.372
B13: ХЛЕБ ПШЕНИЧНЫЙ | G13: 30 | H13: 2.280 | I13: 0.240 | J13: 14.760 | K13: 71 | L13: 0.033 | M13: 0 | O13: 0 | P13: 0.33 | R13: 6 | S13: 19.5 | T13: 4.2 | U13: 0.33
B14: Итого: | H14: =SUM(H4:H13) -> 29.740 | I14: =SUM(I4:I13) -> 24.723 | J14: =SUM(J4:J13) -> 161.324 | K14: =SUM(K4:K13) -> 1047.900 | L14: =SUM(L4:L13) -> 0.405 | M14: =SUM(M16,M5,M6,M8,M9,M10,M11,M12,M13) -> 21.820 | O14: =SUM(N16,O5,O6,N8,O9,O10,O11,O12,O13) -> 28.50 | P14: =SUM(P16,Q5,Q6,P8,Q9,Q10,Q11,P12,P13) -> 4.758 | R14: =SUM(R4:R13) -> 329.46 | S14: =SUM(S4:S13) -> 516.311 | T14: =SUM(T4:T13) -> 128.017 | U14: =SUM(U4:U13) -> 6.112
B15: 2 день (ВТОРНИК) 1 питание
A16: 181/2015,Дели | B16: КАША ЯЧНЕВАЯ | G16: 200 | H16: 7.3 | I16: 8.3 | J16: 42.3 | K16: 273.2 | L16: 0.1 | M16: 0.4 | N16: 0.1 | P16: 0.2 | R16: 130.0 | S16: 32.6 | T16: 216.6 | U16: 1.0
A17: № 376 Сбор.рец. На прод-ию для обуч. Во всех образ.учреж-Дели 2015 | B17: ЧАЙ С САХАРОМ | G17: 200/15 | H17: 0.530 | J17: 9.47 | K17: 40 | M17: 0.270 | R17: 13.600 | S17: 22.130 | T17: 11.730 | U17: 0.100
B18: ХЛЕБ ПШЕНИЧНЫЙ | G18: 50 | H18: 3.800 | I18: 0.400 | J18: 24.500 | K18: 118.3 | L18: 0.055 | M18: 0 | O18: 0 | Q18: 0.550 | R18: 10.000 | S18: 32.500 | T18: 7.000 | U18: 0.550
A19: 2 питание
A20: № 52 Сбор.рец. На прод-ию для обуч. Во всех образ.учреж-Дели 2015 | B20: САЛАТ ИЗ СВЕКЛЫ ОТВАРНОЙ | G20: 100 | H20: 1.425 | I20: 6.088 | J20: 19.303 | K20: 93.3 | L20: 0.018 | M20: 12.833 | Q20: 1.068 | R20: 201.81 | S20: 140.97 | T20: 20.9 | U20: 0.33
A21: № 291 Сбор.рец. На прод-ию для обуч. Во всех образ.учреж-Дели -2015 | B21: ПЛОВ ИЗ ПТИЦЫ | G21: 50/200 | H21: 19.346 | I21: 16.613 | J21: 37.786 | K21: 485.33 | L21: 0.280 | M21: 6.533 | O21: 0.133 | Q21: 1.6 | R21: 110.762 | S21: 364.000 | T21: 53.933 | U21: 2.533
A22: № 376 Сбор.рец. На прод-ию для обуч. Во всех образ.учреж-Дели 2015 | B22: ЧАЙ С САХАРОМ | G22: 200/15 | H22: 0.530 | J22: 9.47 | K22: 40 | M22: 0.270 | R22: 13.600 | S22: 22.130 | T22: 11.730 | U22: 0.100
B23: ХЛЕБ РЖАНОЙ (РЖАНО-ПШЕНИЧНЫЙ) | G23: 20 | H23: 1.00 | I23: 0.2 | J23: 9 | K23: 44 | L23: 0.014 | M23: 0 | O23: 0 | P23: 0.108 | R23: 2.760 | S23: 12.720 | T23: 3.000 | U23: 0.372
B24: ХЛЕБ ПШЕНИЧНЫЙ | G24: 30 | H24: 2.280 | I24: 0.240 | J24: 14.760 | K24: 71 | L24: 0.033 | M24: 0 | O24: 0 | P24: 0.33 | R24: 6 | S24: 19.5 | T24: 4.2 | U24: 0.33
B25: Итого: | H25: =SUM(H16:H24) -> 36.21 | I25: =SUM(I20,I21,I22,I23,I24) -> 23.14 | J25: =SUM(J16:J18,J20,J21,J22,J23,J24) -> 166.59 | K25: =SUM(K16:K18,K20,K21,K22,K23,K24) -> 1165.13 | L25: =SUM(L16:L18,L20,L21,L22,L23,L24) -> 0.50 | M25: =SUM(M16:M18,M20,M21,M22,M23,M24) -> 20.31 | O25: =SUM(N16,O17,O18,O20,O21,O22,O23,O24) -> 0.233 | P25: =SUM(P16,Q17,Q18,Q20,Q21,Q22,P23,P24) -> 3.86 | R25: =SUM(R16,R17,R18,R20,R21,R22,R23,R24) -> 488.53 | S25: =SUM(S16,S17,S18,S20,S21,S22,S23,S24) -> 646.55 | T25: =SUM(T16,T17,T18,T20,T21,T22,T23,T24) -> 329.09 | U25: =SUM(U16,U17,U18,U20,U21,U22,U23,U24) -> 5.315
B26: 3 день (СРЕДА) 1 питание
A27: № 234 Сбор.рец. На прод-ию для обуч. Во всех образ.учреж-Дели -2015 | B27: БИТОЧКИ РЫБНЫЕ | G27: 60 | H27: 4.830 | I27: 3.180 | J27: 5.610 | K27: 87 | L27: 0.037 | M27: 0.360 | N27: 0.075 | Q27: 0.484 | R27: 33.015 | S27: 102.790 | T27: 9.000 | U27: 0.000
A28: № 312 Сбор.рец. На прод-ию для обуч. Во всех образ.учреж-Дели -2015 | B28: ПЮРЕ КАРТОФЕЛЬНОЕ | G28: 200 | H28: 4.120 | I28: 11.042 | J28: 29.300 | K28: 229.33 | L28: 0.218 | M28: 10.590 | N28: 0.106 | Q28: 4.000 | R28: 63.740 | S28: 131.780 | T28: 10.600 | U28: 0.000
A29: № 376 Сбор.рец. На прод-ию для обуч. Во всех образ.учреж-Дели 2015 | B29: ЧАЙ С САХАРОМ | G29: 200/15 | H29: 0.530 | J29: 9.47 | K29: 40 | M29: 0.270 | R29: 13.600 | S29: 22.130 | T29: 11.730 | U29: 0.100
B30: ХЛЕБ РЖАНОЙ (РЖАНО-ПШЕНИЧНЫЙ) | G30: 20 | H30: 1.00 | I30: 0.2 | J30: 9 | K30: 44 | L30: 0.014 | M30: 0 | O30: 0 | P30: 0.108 | R30: 2.760 | S30: 12.720 | T30: 3.000 | U30: 0.372
B31: ХЛЕБ ПШЕНИЧНЫЙ | G31: 30 | H31: 2.280 | I31: 0.240 | J31: 14.760 | K31: 71 | L31: 0.033 | M31: 0 | O31: 0 | P31: 0.33 | R31: 6 | S31: 19.5 | T31: 4.2 | U31: 0.33
A32: 2 питание
A33: 2012, Дели | B33: БОРЩ С КАПУСТОЙ И КАРТОФЕЛЕМ НА МЯСО-КОСТНОМ БУЛЬОНЕ | G33: 250 | H33: 4.3 | I33: 2.000 | J33: 13.300 | K33: 90.9 | L33: 0.1 | M33: 12.2 | O33: 0.2 | Q33: 0.2 | R33: 50.2 | S33: 30.2 | T33: 75.9 | U33: 1.8
A34: № 376 Сбор.рец. На прод-ию для обуч. Во всех образ.учреж-Дели 2015 | B34: ЧАЙ С САХАРОМ | G34: 200/15 | H34: 0.530 | J34: 9.47 | K34: 40 | M34: 0.270 | R34: 13.600 | S34: 22.130 | T34: 11.730 | U34: 0.100
B35: ХЛЕБ РЖАНОЙ (РЖАНО-ПШЕНИЧНЫЙ) | G35: 50 | H35: 2.5 | I35: 0.5 | J35: 22.5 | K35: 110 | L35: 0.035 | M35: 0.000 | O35: 0 | Q35: 0.27 | R35: 6.900 | S35: 7.500 | T35: 31.8 | U35: 0.93
B36: Итого: | H36: =SUM(H27:H35) -> 20.09 | I36: =SUM(I27:I35) -> 17.16 | J36: =SUM(J27:J35) -> 113.41 | K36: =SUM(K27:K35) -> 712.23 | L36: =SUM(L27:L35) -> 0.44 | M36: =SUM(M27:N35) -> 23.871 | O36: =SUM(N27:P29,O30,O31,O33,O34,O35) -> 0.4 | P36: =SUM(Q27,Q28,Q29,P30,P31,Q33,Q34,Q35) -> 5.392 | R36: =SUM(R27:R35) -> 189.82 | S36: =SUM(S27:S35) -> 348.750 | T36: =SUM(T27:T35) -> 157.960 | U36: =SUM(U27:U35) -> 3.632
B37: 4 день (ЧЕТВЕРГ) 1 питание
A38: 182/2015 Дели | B38: КАША МОЛОЧНАЯ (ПШЕННАЯ) | G38: 200 | H38: 8.4 | I38: 9.2 | J38: 46.6 | K38: 304 | L38: 0.2 | M38: 0.5 | O38: 0.1 | Q38: 1.6 | R38: 109.9 | S38: 178.8 | T38: 50.4 | U38: 1.5
A39: № 376 Сбор.рец. На прод-ию для обуч. Во всех образ.учреж-Дели 2015 | B39: ЧАЙ С САХАРОМ | G39: 200/15 | H39: 0.530 | J39: 9.47 | K39: 40 | M39: 0.270 | R39: 13.600 | S39: 22.130 | T39: 11.730 | U39: 0.100
B40: ХЛЕБ ПШЕНИЧНЫЙ | G40: 50 | H40: 3.800 | I40: 0.400 | J40: 24.500 | K40: 118.3 | L40: 0.055 | M40: 0 | O40: 0 | Q40: 0.550 | R40: 10.000 | S40: 32.500 | T40: 7.000 | U40: 0.550
A41: 2 питание
A42: № 52 Сбор.рец. На прод-ию для обуч. Во всех образ.учреж-Дели 2015 | B42: САЛАТ ИЗ СВЕКЛЫ ОТВАРНОЙ | G42: 100 | H42: 1.425 | I42: 6.088 | J42: 19.303 | K42: 93.3 | L42: 0.018 | M42: 12.833 | Q42: 1.068 | R42: 201.81 | S42: 140.97 | T42: 20.9 | U42: 0.33
A43: № 268 Сбор.рец. На прод-ию для обуч. Во всех образ.учреж-Дели 2015 | B43: КОТЛЕТЫ | G43: 60 | H43: 9.137 | I43: 9.110 | J43: 5.805 | K43: 139.7 | L43: 0.041 | M43: 0.525 | O43: - | P43: - | Q43: 0.984 | R43: 9.579 | S43: 92.37 | T43: 11.707 | U43: 1.363
A44: № 203 Сбор.рец. На прод-ию для обуч. Во всех образ.учреж-Дели 2015 | B44: МАКАРОННЫЕ ИЗДЕЛИЯ ОТВАРНЫЕ С МАСЛОМ | G44: 200 | H44: 6.800 | I44: 5.957 | J44: 38.000 | K44: 249.33 | L44: 0.116 | M44: - | O44: 0.133 | P44: 1.453 | R44: 21.942 | S44: 76.012 | T44: 11.305 | U44: 1.540
A45: 349/2015, Дели | B45: КОМПОТ ИЗ СМЕСИ СУХОФРУКТОВ | G45: 200 | H45: 0.0 | I45: 0.0 | J45: 14.600 | K45: 58.1 | L45: 0.000 | M45: 0 | O45: 0 | Q45: 0.000 | R45: 8.4 | S45: 0.0 | T45: 1.8 | U45: 0.0
B46: ХЛЕБ РЖАНОЙ (РЖАНО-ПШЕНИЧНЫЙ) | G46: 20 | H46: 1.00 | I46: 0.2 | J46: 9 | K46: 44 | L46: 0.014 | M46: 0 | O46: 0 | P46: 0.108 | R46: 2.760 | S46: 12.720 | T46: 3.000 | U46: 0.372
B47: ХЛЕБ ПШЕНИЧНЫЙ | G47: 30 | H47: 2.280 | I47: 0.240 | J47: 14.760 | K47: 71 | L47: 0.033 | M47: 0 | O47: 0 | P47: 0.33 | R47: 6 | S47: 19.5 | T47: 4.2 | U47: 0.33
B48: Итого: | H48: =SUM(H38:H47) -> 33.372 | I48: =SUM(I38:I47) -> 31.195 | J48: =SUM(J38:J47) -> 182.038 | K48: =SUM(K38:K47) -> 1117.730 | L48: =SUM(L38:L47) -> 0.477 | M48: =SUM(M38,M39,M40,M43,M44,M45,M46,M47) -> 1.295 | O48: =SUM(O38,O39,O40,O43,O44,O45,O46,O47) -> 0.23 | P48: =SUM(Q38,Q39,Q40,Q43,P44,Q45,P46,P47) -> 5.025 | R48: =SUM(R38:R47) -> 383.991 | S48: =SUM(S38:S47) -> 575.002 | T48: =SUM(T38:T47) -> 122.042 | U48: =SUM(U38:U47) -> 6.085
B49: 5 день (ПЯТНИЦА) 1 питание
A50: 189/2008Речь | B50: КАША ПШЕНИЧНАЯ | G50: 200 | H50: 6.9 | I50: 7.5 | J50: 35.9 | K50: 238.2 | L50: 0.1 | M50: 0.4 | N50: 0.0 | Q50: 0.1 | R50: 109.4 | S50: 31.8 | T50: 156.8 | U50: 1.6
A51: № 376 Сбор.рец. На прод-ию для обуч. Во всех образ.учреж-Дели 2015 | B51: ЧАЙ С САХАРОМ | G51: 200/15 | H51: 0.530 | J51: 9.47 | K51: 40 | M51: 0.270 | R51: 13.600 | S51: 22.130 | T51: 11.730 | U51: 0.100
B52: ХЛЕБ ПШЕНИЧНЫЙ | G52: 50 | H52: 3.800 | I52: 0.400 | J52: 24.500 | K52: 118.3 | L52: 0.055 | M52: 0 | O52: 0 | Q52: 0.550 | R52: 10.000 | S52: 32.500 | T52: 7.000 | U52: 0.550
A53: 2 питание
A54: № 132 Сбор.рец. На прод-ию для обуч. Во всех образ.учреж-Дели 2012 | B54: КАПУСТА ТУШЕНАЯ | G54: 100 | H54: 2.4 | I54: 4.000 | J54: 9.800 | K54: 86.1 | L54: 0.00 | M54: 20.5 | N54: 0.3 | P54: 1.9 | R54: 63.1 | S54: 45.6 | T54: 23.3 | U54: 1.3
A55: № 303 Сбор.рец. На прод-ию для обуч. Во всех образ.учреж-Дели 2015 | B55: КАША ВЯЗКАЯ (ГРЕЧНЕВАЯ) | G55: 200 | H55: 8.882 | I55: 12.032 | J55: 45.333 | K55: 227 | L55: 0.389 | M55: - | P55: 0.690 | R55: 49.802 | S55: 227.404 | T55: 59.400 | U55: 1.468
A56: № 290 Сбор.рец. На прод-ию для обуч. Во всех образ.учреж-Дели 2015 | B56: ПТИЦА ТУШЕННАЯ В СОУСЕ | G56: 50/50 | H56: 11.650 | I56: 10.750 | J56: 11.600 | K56: 164.00 | L56: 0.168 | M56: 6.326 | P56: 0.956 | R56: 85.200 | S56: 163.198 | T56: 15.716 | U56: 1.800
A57: № 376 Сбор.рец. На прод-ию для обуч. Во всех образ.учреж-Дели 2015 | B57: ЧАЙ С САХАРОМ | G57: 200/15 | H57: 0.530 | J57: 9.47 | K57: 40 | M57: 0.270 | R57: 13.600 | S57: 22.130 | T57: 11.730 | U57: 0.100
B58: ХЛЕБ РЖАНОЙ (РЖАНО-ПШЕНИЧНЫЙ) | G58: 20 | H58: 1.00 | I58: 0.2 | J58: 9 | K58: 44 | L58: 0.014 | M58: 0 | O58: 0 | P58: 0.108 | R58: 2.760 | S58: 12.720 | T58: 3.000 | U58: 0.372
B59: ХЛЕБ ПШЕНИЧНЫЙ | G59: 30 | H59: 2.280 | I59: 0.240 | J59: 14.760 | K59: 71 | L59: 0.033 | M59: 0 | O59: 0 | P59: 0.33 | R59: 6 | S59: 19.5 | T59: 4.2 | U59: 0.33
B60: Итого: | H60: =SUM(H50:H59) -> 37.972 | I60: =SUM(I50:I59) -> 35.122 | J60: 169.833 | K60: 1028.266 | L60: 0.759 | M60: =SUM(M50:M59) -> 27.766 | O60: =SUM(O50:O59) -> 0.00 | P60: =SUM(Q50:Q59) -> 0.650 | R60: =SUM(R50:R59) -> 353.46 | S60: =SUM(S50:S59) -> 576.982 | T60: =SUM(T50:T59) -> 292.876 | U60: =SUM(U50:U59) -> 7.620
B61: 6 день (СУББОТА) Завтрак
A62: № 312 Сбор.рец. На прод-ию для обуч. Во всех образ.учреж-Дели -2015 | B62: ПЮРЕ КАРТОФЕЛЬНОЕ | G62: 200 | H62: 4.120 | I62: 11.042 | J62: 29.300 | K62: 229.33 | L62: 0.218 | M62: 10.590 | N62: 0.106 | Q62: 4.000 | R62: 63.740 | S62: 131.780 | T62: 10.600 | U62: 0.000
A63: № 376 Сбор.рец. На прод-ию для обуч. Во всех образ.учреж-Дели 2015 | B63: ЧАЙ С САХАРОМ | G63: 200/15 | H63: 0.530 | J63: 9.47 | K63: 40 | M63: 0.270 | R63: 13.600 | S63: 22.130 | T63: 11.730 | U63: 0.100
B64: ХЛЕБ РЖАНОЙ (РЖАНО-ПШЕНИЧНЫЙ) | G64: 20 | H64: 1.00 | I64: 0.2 | J64: 9 | K64: 44 | L64: 0.014 | M64: 0 | O64: 0 | P64: 0.108 | R64: 2.760 | S64: 12.720 | T64: 3.000 | U64: 0.372
B65: ХЛЕБ ПШЕНИЧНЫЙ | G65: 30 | H65: 2.280 | I65: 0.240 | J65: 14.760 | K65: 71 | L65: 0.033 | M65: 0 | O65: 0 | P65: 0.33 | R65: 6 | S65: 19.5 | T65: 4.2 | U65: 0.33
A66: 2 Завтрак
A67: 99/2015,Дели | B67: СУП ГОРОХОВЫЙ НА МЯСО-КОСТНОМ БУЛЬОНЕ | G67: 250 | H67: 7.8 | I67: 2.3 | J67: 18.5 | K67: 126.9 | L67: 0.3 | M67: 4.5 | O67: 0.2 | Q67: 2.0 | R67: 48.7 | S67: 35.0 | T67: 96.7 | U67: 2.3
A68: № 376 Сбор.рец. На прод-ию для обуч. Во всех образ.учреж-Дели 2015 | B68: ЧАЙ С САХАРОМ | G68: 200/15 | H68: 0.530 | J68: 9.47 | K68: 40 | M68: 0.270 | R68: 13.600 | S68: 22.130 | T68: 11.730 | U68: 0.100
B69: ХЛЕБ РЖАНОЙ (РЖАНО-ПШЕНИЧНЫЙ) | G69: 50 | H69: 2.5 | I69: 0.5 | J69: 22.5 | K69: 110 | L69: 0.035 | M69: 0.000 | O69: 0 | Q69: 0.27 | R69: 6.900 | S69: 7.500 | T69: 31.8 | U69: 0.93
B70: Итого: | H70: =SUM(H62:H69) -> 18.76 | I70: =SUM(I62:I69) -> 14.28 | J70: =SUM(J62:J69) -> 113.00 | K70: =SUM(K62:K69) -> 661.23 | L70: =SUM(L62:L69) -> 0.60 | M70: =SUM(M62,M63,M64,M65,M33,M68) -> 23.33 | O70: =SUM(N62,O63,O64,O65,O33,O68) -> 0.31 | P70: =SUM(Q33,Q68,Q62,Q63,P64,P65) -> 4.64 | R70: =SUM(R62:R69) -> 155.30 | S70: =SUM(S62:S69) -> 250.76 | T70: =SUM(T62:T69) -> 169.76 | U70: =SUM(U62:U69) -> 4.13
A72: Наименование сборника рецептур:Сборник рецептур блюд и кулинарных изделий для предприятий общественного питания / Авт.-сост: А.И.Здобнов, В.А. Цыганенко, М.И.Цыганенко.- К.:ООО "Издательство Арий",М.:ИКТЦ "Лада", 2011.-680 с.
A73: Наименование сборника рецептур: Сборник методических рекомендаций по организации питания детей и подростков в учреждениях образования Санкт-Петербурга. - СПб.: Речь, 2008. - 800 с.
A74: Наименование сборника рецептур: Рецептура блюд согласно Сборнику рецептур на продукцию для обучающихся во всех образовательных учреждениях Под ред. М.П.Могильного и В.А. Тутельяна Дели плюс 2015
